fUST/lending_fUST_20240626
["ID","MTS","AMOUNT","RATE_DAILY","PERIOD"]
[330402378,1719348649044,-500.0,0.00016986,2]
[330402379,1719348649053,-500.0,0.00016986,2]
[330402380,1719348649061,-500.0,0.00016986,2]
[330402382,1719348649071,-500.0,0.00016986,2]
[330402384,1719348649079,-500.0,0.00016986,2]
[330402386,1719348649089,-500.0,0.00016986,2]
[330402388,1719348649098,-500.0,0.00016986,2]
[330402390,1719348649107,-500.0,0.00016986,2]
[330402392,1719348649116,-500.0,0.00016986,2]
[330402394,1719348649125,-1304.54,0.00016986,2]
[330402396,1719348649134,-1045.35,0.00016986,2]
[330402398,1719348649143,-500.0,0.00016986,2]
[330402400,1719348649153,-151.0,0.00016986,2]
[330402402,1719348649162,-247.052392,0.00016986,2]
[330402404,1719348649171,-500.0,0.00016986,2]
[330402406,1719348649181,-500.0,0.00016986,2]
[330402408,1719348649190,-584.88,0.00016986,2]
[330402410,1719348649199,-500.0,0.00016986,2]
[330402412,1719348649208,-500.0,0.00016986,2]
[330402414,1719348649217,-500.0,0.00016986,2]
[330402416,1719348649226,-500.0,0.00016986,2]
[330402418,1719348649235,-500.0,0.00016986,2]
[330402420,1719348649244,-500.0,0.00016986,2]
[330402422,1719348649254,-1504.96,0.00016986,2]
[330402424,1719348649264,-500.0,0.00016986,2]
[330402426,1719348649274,-490.25929685,0.00016986,2]
[330402428,1719348649283,-500.0,0.00016986,2]
[330402430,1719348649293,-500.0,0.00016986,2]
[330402432,1719348649302,-500.0,0.00016986,2]
[330402434,1719348649312,-500.0,0.00016986,2]
[330402436,1719348649322,-500.0,0.00016986,2]
[330402438,1719348649331,-500.0,0.00016986,2]
[330402440,1719348649341,-1236.2,0.00016986,2]
[330402442,1719348649351,-500.0,0.00016986,2]
[330402444,1719348649361,-500.0,0.00016986,2]
[330402445,1719348649370,-500.0,0.00016986,2]
[330402448,1719348649380,-581.65,0.00016986,2]
[330402450,1719348649389,-500.0,0.00016986,2]
[330402451,1719348649399,-296.03988488,0.00016986,2]
[330402454,1719348649408,-991.85,0.00016986,2]
[330402456,1719348649418,-500.0,0.00016986,2]
[330402457,1719348649428,-780.38,0.00016986,2]
[330402459,1719348649437,-500.0,0.00016986,2]
[330402462,1719348649446,-500.0,0.00016986,2]
[330402464,1719348649455,-839.65,0.00016986,2]
[330402465,1719348649465,-500.0,0.00016986,2]
[330402468,1719348649474,-500.0,0.00016986,2]
[330402469,1719348649485,-500.0,0.00016986,2]
[330402471,1719348649496,-151.0,0.00016986,2]
[330402473,1719348649505,-151.0,0.00016986,2]
[330402475,1719348649514,-500.0,0.00016986,2]
[330402477,1719348649523,-2639.84,0.00016986,2]
[330402480,1719348649533,-500.0,0.00016986,2]
[330402482,1719348649542,-500.0,0.00016986,2]
[330402484,1719348649552,-500.0,0.00016986,2]
[330402486,1719348649561,-500.0,0.00016986,2]
[330402487,1719348649571,-1030.25,0.00016986,2]
[330402490,1719348649580,-1003.13,0.00016986,2]
[330402491,1719348649589,-500.0,0.00016986,2]
[330402493,1719348649598,-576.91,0.00016986,2]
[330402496,1719348649607,-500.0,0.00016986,2]
[330402498,1719348649616,-500.0,0.00016986,2]
[330402499,1719348649626,-500.0,0.00016986,2]
[330402502,1719348649635,-214.06440436,0.00016986,2]
[330402503,1719348649644,-500.0,0.00016986,2]
[330402506,1719348649653,-500.0,0.00016986,2]
[330402508,1719348649663,-500.0,0.00016986,2]
[330402510,1719348649672,-500.0,0.00016986,2]
[330402511,1719348649686,-500.0,0.00016986,2]
[330402514,1719348649700,-500.0,0.00016986,2]
[330402516,1719348649710,-500.0,0.00016986,2]
[330402518,1719348649719,-500.0,0.00016986,2]
[330402520,1719348649729,-500.0,0.00016986,2]
[330402522,1719348649739,-500.0,0.00016986,2]
[330402523,1719348649748,-500.0,0.00016986,2]
[330402525,1719348649758,-779.3,0.00016986,2]
[330402527,1719348649767,-500.0,0.00016986,2]
[330402529,1719348649777,-21999.72,0.00016986,2]
[330402531,1719348649787,-500.0,0.00016986,2]
[330402533,1719348649797,-500.0,0.00016986,2]
[330402536,1719348649806,-500.0,0.00016986,2]
[330402537,1719348649816,-151.0,0.00016986,2]
[330402539,1719348649825,-151.0,0.00016986,2]
[330402541,1719348649834,-500.0,0.00016986,2]
[330402543,1719348649843,-611.08,0.00016986,2]
[330402546,1719348649853,-500.0,0.00016986,2]
[330402548,1719348649862,-151.0,0.00016986,2]
[330402550,1719348649871,-500.0,0.00016986,2]
[330402551,1719348649881,-151.0,0.00016986,2]
[330402553,1719348649890,-500.0,0.00016986,2]
[330402555,1719348649899,-243.394028,0.00016986,2]
[330402557,1719348649908,-500.0,0.00016986,2]
[330402559,1719348649917,-1655.1,0.00016986,2]
[330402561,1719348649927,-600.3,0.00016986,2]
[330402563,1719348649935,-500.0,0.00016986,2]
[330402565,1719348649944,-500.0,0.00016986,2]
[330402567,1719348649954,-344.47130586,0.00016986,2]
[330402569,1719348649963,-1754.49,0.00016986,2]
[330402571,1719348649972,-500.0,0.00016986,2]
[330402573,1719348649981,-4719.55,0.00016986,2]
[330402575,1719348649990,-500.0,0.00016986,2]
[330402577,1719348649999,-500.0,0.00016986,2]
[330402579,1719348650008,-151.0,0.00016986,2]
[330402581,1719348650017,-151.0,0.00016986,2]
[330402583,1719348650027,-500.0,0.00016986,2]
[330402585,1719348650036,-500.0,0.00016986,2]
[330402587,1719348650044,-500.0,0.00016986,2]
[330402589,1719348650054,-500.0,0.00016986,2]
[330402591,1719348650063,-580.78,0.00016986,2]
[330402593,1719348650072,-3108.87,0.00016986,2]
[330402595,1719348650081,-500.0,0.00016986,2]
[330402597,1719348650090,-500.0,0.00016986,2]
[330402599,1719348650099,-672.04,0.00016986,2]
[330402601,1719348650108,-500.0,0.00016986,2]
[330402603,1719348650117,-500.0,0.00016986,2]
[330402605,1719348650126,-500.0,0.00016986,2]
[330402607,1719348650135,-585.4,0.00016986,2]
[330402609,1719348650144,-500.0,0.00016986,2]
[330402611,1719348650154,-5402.61,0.00016986,2]
[330402613,1719348650163,-5171.68,0.00016986,2]
[330402615,1719348650172,-500.0,0.00016986,2]
[330402617,1719348650182,-500.0,0.00016986,2]
[330402619,1719348650191,-500.0,0.00016986,2]
[330402621,1719348650200,-500.0,0.00016986,2]
[330402622,1719348650209,-500.0,0.00016986,2]
[330402623,1719348650218,-500.0,0.00016986,2]
[330402624,1719348650227,-500.0,0.00016986,2]
[330402625,1719348650236,-500.0,0.00016986,2]
[330402626,1719348650245,-789.39,0.00016986,2]
[330402627,1719348650254,-1381.9,0.00016986,2]
[330402628,1719348650263,-1214.92,0.00016986,2]
[330402629,1719348650271,-500.0,0.00016986,2]
[330402630,1719348650280,-711.25,0.00016986,2]
[330402631,1719348650288,-500.0,0.00016986,2]
[330402632,1719348650297,-3409.84,0.00016986,2]
[330402633,1719348650307,-500.0,0.00016986,2]
[330402634,1719348650316,-500.0,0.00016986,2]
[330402635,1719348650325,-500.0,0.00016986,2]
[330402636,1719348650334,-500.0,0.00016986,2]
[330402637,1719348650342,-500.0,0.00016986,2]
[330402638,1719348650351,-357.02079771,0.00016986,2]
[330402639,1719348650362,-1613.24,0.00016986,2]
[330402640,1719348650371,-538.39951335,0.00016986,2]
[330402641,1719348650379,-500.0,0.00016986,2]
[330402642,1719348650389,-500.0,0.00016986,2]
[330402643,1719348650397,-500.0,0.00016986,2]
[330402644,1719348650406,-500.0,0.00016986,2]
[330402645,1719348650415,-500.0,0.00016986,2]
[330402646,1719348650423,-1682.65,0.00016986,2]
[330402647,1719348650433,-500.0,0.00016986,2]
[330402648,1719348650441,-500.0,0.00016986,2]
[330402649,1719348650450,-500.0,0.00016986,2]
[330402650,1719348650458,-606.13,0.00016986,2]
[330402651,1719348650467,-500.0,0.00016986,2]
[330402652,1719348650476,-500.0,0.00016986,2]
[330402653,1719348650485,-1162.02,0.00016986,2]
[330402654,1719348650494,-629.72,0.00016986,2]
[330402655,1719348650502,-151.0,0.00016986,2]
[330402656,1719348650512,-215.946329,0.00016986,2]
[330402657,1719348650521,-500.0,0.00016986,2]
[330402658,1719348650530,-1273.46,0.00016986,2]
[330402659,1719348650539,-851.15,0.00016986,2]
[330402660,1719348650547,-500.0,0.00016986,2]
[330402661,1719348650557,-666.44,0.00016986,2]
[330402662,1719348650565,-500.0,0.00016986,2]
[330402663,1719348650574,-583.28639564,0.00016986,2]
[330402664,1719348650583,-151.0,0.00016986,2]
[330402665,1719348650592,-151.0,0.00016986,2]
[330402666,1719348650600,-500.0,0.00016986,2]
[330402667,1719348650609,-151.0,0.00016986,2]
[330402668,1719348650618,-500.0,0.00016986,2]
[330402669,1719348650627,-500.0,0.00016986,2]
[330402670,1719348650636,-151.0,0.00016986,2]
[330402671,1719348650645,-826.01,0.00016986,2]
[330402672,1719348650654,-500.0,0.00016986,2]
[330402673,1719348650662,-151.0,0.00016986,2]
[330402674,1719348650671,-201.895089,0.00016986,2]
[330402675,1719348650681,-622.86,0.00016986,2]
[330402676,1719348650690,-500.0,0.00016986,2]
[330402678,1719348650704,-2519.94,0.00016986,2]
[330402680,1719348650713,-1218.31,0.00016986,2]
[330402682,1719348650722,-500.0,0.00016986,2]
[330402684,1719348650731,-160.591,0.00016986,2]
[330402685,1719348650740,-3376.55,0.00016986,2]
[330402687,1719348650750,-673.6,0.00016986,2]
[330402689,1719348650759,-1875.53,0.00016986,2]
[330402692,1719348650768,-151.0,0.00016986,2]
[330402693,1719348650781,-151.0,0.00016986,2]
[330402696,1719348650791,-500.0,0.00016986,2]
[330402698,1719348650800,-500.0,0.00016986,2]
[330402699,1719348650809,-1131.78,0.00016986,2]
[330402701,1719348650818,-6786.21,0.00016986,2]
[330402703,1719348650827,-500.0,0.00016986,2]
[330402705,1719348650837,-949.53,0.00016986,2]
[330402707,1719348650846,-1719.44,0.00016986,2]
[330402709,1719348650855,-9046.64,0.00016986,2]
[330402711,1719348650864,-500.0,0.00016986,2]
[330402713,1719348650873,-500.0,0.00016986,2]
[330402715,1719348650882,-500.0,0.00016986,2]
[330402717,1719348650891,-2731.74,0.00016986,2]
[330402720,1719348650900,-997.69,0.00016986,2]
[330402722,1719348650910,-10473.66,0.00016986,2]
[330402724,1719348650919,-1077.49,0.00016986,2]
[330402726,1719348650928,-500.0,0.00016986,2]
[330402728,1719348650938,-500.0,0.00016986,2]
[330402730,1719348650947,-523.96573731,0.00016986,2]
[330402732,1719348650957,-792.61,0.00016986,2]
[330402734,1719348650967,-500.0,0.00016986,2]
[330402735,1719348650975,-151.0,0.00016986,2]
[330402737,1719348650985,-500.0,0.00016986,2]
[330402739,1719348650994,-151.0,0.00016986,2]
[330402741,1719348651003,-500.0,0.00016986,2]
[330402743,1719348651013,-817.48,0.00016986,2]
[330402745,1719348651022,-500.0,0.00016986,2]
[330402747,1719348651031,-151.0,0.00016986,2]
[330402749,1719348651040,-151.0,0.00016986,2]
[330402751,1719348651049,-500.0,0.00016986,2]
[330402753,1719348651059,-151.0,0.00016986,2]
[330402755,1719348651068,-500.0,0.00016986,2]
[330402757,1719348651077,-1096.48,0.00016986,2]
[330402759,1719348651085,-501.29609268,0.00016986,2]
[330402761,1719348651094,-362.64247783,0.00016986,2]
[330402763,1719348651103,-590.30270257,0.00016986,2]
[330402765,1719348651113,-500.0,0.00016986,2]
[330402767,1719348651121,-500.0,0.00016986,2]
[330402769,1719348651130,-500.0,0.00016986,2]
[330402771,1719348651139,-1315.17,0.00016986,2]
[330402772,1719348651148,-295.38675613,0.00016986,2]
[330402774,1719348651157,-4491.92,0.00016986,2]
[330402776,1719348651166,-500.0,0.00016986,2]
[330402778,1719348651176,-8998.3,0.00016986,2]
[330402780,1719348651185,-500.0,0.00016986,2]
[330402783,1719348651195,-500.0,0.00016986,2]
[330402785,1719348651204,-500.0,0.00016986,2]
[330402787,1719348651213,-26521.76,0.00016986,2]
[330402789,1719348651222,-288.04927062,0.00016986,2]
[330402790,1719348651231,-594.0,0.00017,2]
[330402792,1719348651241,-486.1,0.00017088,2]
[330402794,1719348651250,-557.67,0.00017258,2]
[330402796,1719348651259,-557.67,0.00017259,2]
[330402799,1719348651268,-557.67,0.00017259,2]
[330402800,1719348651277,-557.67,0.00017259,2]
[330402802,1719348651287,-557.67,0.00017259,2]
[330402815,1719348651401,-557.67,0.00017259,2]
[330402817,1719348651410,-557.67,0.00017259,2]
[330402819,1719348651419,-557.67,0.00017259,2]
[330402820,1719348651429,-557.67,0.00017259,2]
[330402821,1719348651438,-557.67,0.00017259,2]
[330402822,1719348651447,-557.75,0.00017259,2]
[330402823,1719348651457,-500.0,0.0001726,2]
[330402824,1719348651466,-250.0,0.0001726,2]
[330402825,1719348651476,-500.0,0.0001726,2]
[330402826,1719348651485,-627.91,0.0001726,2]
[330402829,1719348651494,-500.0,0.0001726,2]
[330402831,1719348651504,-151.0,0.0001726,2]
[330402832,1719348651514,-151.0,0.0001726,2]
[330402835,1719348651523,-786.27,0.0001726,2]
[330402836,1719348651533,-500.0,0.0001726,2]
[330402837,1719348651542,-500.0,0.0001726,2]
[330402838,1719348651552,-500.0,0.0001726,2]
[330402839,1719348651561,-622.25199217,0.0001726,2]
[330402840,1719348651570,-260.89440099,0.0001726,2]
[330402841,1719348651580,-500.0,0.0001726,2]
[330402842,1719348651589,-500.0,0.0001726,2]
[330402843,1719348651598,-500.0,0.0001726,2]
[330402844,1719348651608,-500.0,0.0001726,2]
[330402845,1719348651618,-770.33,0.0001726,2]
[330402846,1719348651628,-500.0,0.0001726,2]
[330402847,1719348651637,-500.0,0.0001726,2]
[330402848,1719348651647,-650.81,0.0001726,2]
[330402849,1719348651656,-390.802833,0.0001726,2]
[330402850,1719348651676,-109.197167,0.0001726,2]
[330402851,1719348651685,-500.0,0.0001726,2]
[330402852,1719348651696,-1146.46,0.0001726,2]
[330402853,1719348651707,-522.03490594,0.0001726,2]
[330402854,1719348651716,-500.0,0.0001726,2]
[330402855,1719348651725,-500.0,0.0001726,2]
[330402856,1719348651735,-500.0,0.0001726,2]
[330402857,1719348651744,-500.0,0.0001726,2]
[330402858,1719348651752,-500.0,0.0001726,2]
[330402859,1719348651762,-500.0,0.0001726,2]
[330402860,1719348651771,-500.0,0.0001726,2]
[330402861,1719348651783,-500.0,0.0001726,2]
[330402862,1719348651792,-1304.54,0.0001726,2]
[330402863,1719348651801,-1045.35,0.0001726,2]
[330402864,1719348651810,-500.0,0.0001726,2]
[330402865,1719348651819,-500.0,0.0001726,2]
[330402866,1719348651828,-385.85494918,0.0001726,2]
[330402867,1719348651837,-584.88,0.0001726,2]
[330402868,1719348651847,-500.0,0.0001726,2]
[330402869,1719348651856,-500.0,0.0001726,2]
[330402870,1719348651866,-405.0648108,0.0001726,2]
[330402871,1719348651875,-500.0,0.0001726,2]
[330402872,1719348651884,-500.0,0.0001726,2]
[330402873,1719348651893,-1504.96,0.0001726,2]
[330402874,1719348651902,-507.31006786,0.0001726,2]
[330402875,1719348651911,-500.0,0.0001726,2]
[330402876,1719348651920,-500.0,0.0001726,2]
[330402877,1719348651929,-500.0,0.0001726,2]
[330402878,1719348651938,-1236.2,0.0001726,2]
[330402879,1719348651947,-500.0,0.0001726,2]
[330402880,1719348651956,-500.0,0.0001726,2]
[330402881,1719348651965,-500.0,0.0001726,2]
[330402882,1719348651975,-581.65,0.0001726,2]
[330402883,1719348651984,-500.0,0.0001726,2]
[330402884,1719348651994,-991.85,0.0001726,2]
[330402885,1719348652003,-780.38,0.0001726,2]
[330402886,1719348652012,-500.0,0.0001726,2]
[330402887,1719348652022,-500.0,0.0001726,2]
[330402888,1719348652032,-839.65,0.0001726,2]
[330402889,1719348652042,-500.0,0.0001726,2]
[330402890,1719348652051,-500.0,0.0001726,2]
[330402891,1719348652060,-151.0,0.0001726,2]
[330402892,1719348652069,-151.0,0.0001726,2]
[330402893,1719348652078,-500.0,0.0001726,2]
[330402894,1719348652087,-1459.85474423,0.0001726,2]
[330402895,1719348652261,495.69,0.000225,30]
[330403875,1719348671931,247.0,0.000225,30]
[330403898,1719349832130,318.1015147,0.00013999,2]
[330403912,1719349832440,-315.71,0.00014026,2]
[330403913,1719349832452,-2.3915147,0.00014026,2]
[330403914,1719349832461,-1329.89608563,0.00014128,2]
[330403915,1719349832475,-1390.0,0.00014128,2]
[330403916,1719349832487,-3792.74837424,0.00014128,2]
[330403940,1719349838288,-397.81225963,0.00014128,2]
[330403941,1719349838299,-593.98847362,0.00014128,2]
[330403942,1719349838339,-1123.93086466,0.00014128,2]
[330403943,1719349838391,-3651.58,0.00014128,2]
[330403990,1719349840545,-512.99,0.00014128,2]
[330403998,1719349840614,-861.075,0.00014128,2]
[330404341,1719349843796,-0.00181412,0.00014128,2]
[330404343,1719349843809,-309.824973,0.00014128,2]
[330404345,1719349843818,-300.0,0.0001413,2]
[330404346,1719349843827,-300.0,0.0001413,2]
[330404347,1719349843837,-257.6749072,0.00014691,2]
[330404348,1719349843846,-229.36407893,0.00014758,2]
[330404349,1719349843855,-10167.248562,0.00014956,2]
[330404350,1719349843865,-648.2301218,0.00015399,2]
[330404353,1719349843875,-236.22925636,0.000154,2]
[330404356,1719349843885,-236.22925634,0.000154,2]
[330404358,1719349843895,-154.83742071,0.00015542,2]
[330404360,1719349843904,-420.0,0.00015543,2]
[330404362,1719349843914,-817.36545723,0.00015806,2]
[330404364,1719349843924,-8490.75064039,0.00016337,2]
[330404378,1719349844048,-269.350406,0.00016337,2]
[330404572,1719349846665,-236.22925634,0.000154,2]
[330404574,1719349846674,-842.67099679,0.00016337,2]
[330404576,1719349846683,-247.47525819,0.00016337,2]
[330404578,1719349846693,-771.8451034,0.00016338,2]
[330404580,1719349846702,-438.67697709,0.00016438,2]
[330404582,1719349846711,-633.08551059,0.00016438,2]
[330404583,1719349846721,-539.19503654,0.00016438,2]
[330404585,1719349846730,-500.0,0.00016438,2]
[330404587,1719349846739,-500.0,0.00016438,2]
[330404589,1719349846749,-500.0,0.00016438,2]
[330404591,1719349846759,-500.0,0.00016438,2]
[330404593,1719349846769,-500.0,0.00016438,2]
[330404595,1719349846779,-500.0,0.00016438,2]
[330404597,1719349846788,-500.0,0.00016438,2]
[330404599,1719349846798,-500.0,0.00016438,2]
[330404601,1719349846808,-505.54,0.00016438,2]
[330404603,1719349846817,-500.0,0.00016438,2]
[330404605,1719349846827,-475.44424095,0.00016438,2]
[330404606,1719349846839,-500.0,0.00016438,2]
[330404607,1719349846848,-500.0,0.00016438,2]
[330404608,1719349846857,-500.0,0.00016438,2]
[330404609,1719349846866,-929.71,0.00016438,2]
[330404611,1719349846875,-576.86093411,0.00016438,2]
[330404612,1719349846884,-500.0,0.00016438,2]
[330404615,1719349846894,-500.0,0.00016438,2]
[330404617,1719349846903,-500.0,0.00016438,2]
[330404619,1719349846914,-500.0,0.00016438,2]
[330404621,1719349846926,-500.0,0.00016438,2]
[330404623,1719349846936,-500.0,0.00016438,2]
[330404625,1719349846945,-500.0,0.00016438,2]
[330404627,1719349846957,-990.31,0.00016438,2]
[330404629,1719349846967,-500.0,0.00016438,2]
[330404631,1719349846976,-500.0,0.00016438,2]
[330404633,1719349846985,-569.46,0.00016438,2]
[330404635,1719349846994,-500.0,0.00016438,2]
[330404637,1719349847003,-368.40806249,0.00016438,2]
[330404639,1719349847017,-131.59193751,0.00016438,2]
[330404641,1719349847026,-218.94362412,0.00016438,2]
[330404644,1719349847043,-281.05637588,0.00016438,2]
[330404646,1719349847052,-559.31710814,0.00016438,2]
[330404648,1719349847062,-500.0,0.00016438,2]
[330404650,1719349847072,-7873.51,0.00016438,2]
[330404652,1719349847082,-1050.93,0.00016438,2]
[330404654,1719349847094,-500.0,0.00016438,2]
[330404656,1719349847104,-500.0,0.00016438,2]
[330404658,1719349847114,-500.0,0.00016438,2]
[330404660,1719349847123,-500.0,0.00016438,2]
[330404662,1719349847134,-500.0,0.00016438,2]
[330404664,1719349847143,-500.0,0.00016438,2]
[330404666,1719349847152,-227.48154255,0.00016438,2]
[330404668,1719349847162,-500.0,0.00016438,2]
[330404670,1719349847176,-500.0,0.00016438,2]
[330404672,1719349847185,-500.0,0.00016438,2]
[330404674,1719349847195,-500.0,0.00016438,2]
[330404676,1719349847205,-500.0,0.00016438,2]
[330404678,1719349847214,-500.0,0.00016438,2]
[330404680,1719349847223,-500.0,0.00016438,2]
[330404682,1719349847232,-500.0,0.00016438,2]
[330404684,1719349847241,-500.0,0.00016438,2]
[330404686,1719349847250,-642.34195471,0.00016438,2]
[330404688,1719349847260,-1184.96,0.00016438,2]
[330404690,1719349847269,-500.0,0.00016438,2]
[330404692,1719349847278,-500.0,0.00016438,2]
[330404694,1719349847287,-500.0,0.00016438,2]
[330404695,1719349847296,-500.0,0.00016438,2]
[330404697,1719349847305,-717.65,0.00016438,2]
[330404718,1719349847481,-500.0,0.00016438,2]
[330404720,1719349847491,-500.0,0.00016438,2]
[330404722,1719349847500,-500.0,0.00016438,2]
[330404724,1719349847509,-500.0,0.00016438,2]
[330404726,1719349847518,-929.86,0.00016438,2]
[330404728,1719349847527,-500.0,0.00016438,2]
[330404730,1719349847536,-516.97,0.00016438,2]
[330404732,1719349847546,-1063.05,0.00016438,2]
[330404734,1719349847556,-500.0,0.00016438,2]
[330404736,1719349847565,-500.0,0.00016438,2]
[330404738,1719349847574,-559.39,0.00016438,2]
[330404740,1719349847583,-754.87,0.00016438,2]
[330404742,1719349847593,-500.0,0.00016438,2]
[330404744,1719349847602,-500.0,0.00016438,2]
[330404746,1719349847611,-500.0,0.00016438,2]
[330404748,1719349847620,-508.74157218,0.00016438,2]
[330404750,1719349847630,-500.0,0.00016438,2]
[330404752,1719349847640,-529.02,0.00016438,2]
[330404754,1719349847649,-500.0,0.00016438,2]
[330404756,1719349847658,-1312.28,0.00016438,2]
[330404757,1719349847668,-690.72,0.00016438,2]
[330404758,1719349847677,-500.0,0.00016438,2]
[330404759,1719349847686,-500.0,0.00016438,2]
[330404760,1719349847695,-1067.39,0.00016438,2]
[330404761,1719349847704,-500.0,0.00016438,2]
[330404762,1719349847713,-500.0,0.00016438,2]
[330404763,1719349847722,-500.0,0.00016438,2]
[330404764,1719349847732,-500.0,0.00016438,2]
[330404765,1719349847741,-500.0,0.00016438,2]
[330404766,1719349847750,-500.0,0.00016438,2]
[330404767,1719349847759,-500.0,0.00016438,2]
[330404768,1719349847770,-500.0,0.00016438,2]
[330404769,1719349847780,-500.0,0.00016438,2]
[330404770,1719349847789,-500.0,0.00016438,2]
[330404771,1719349847798,-500.0,0.00016438,2]
[330404772,1719349847807,-500.0,0.00016438,2]
[330404773,1719349847817,-500.0,0.00016438,2]
[330404774,1719349847826,-500.0,0.00016438,2]
[330404775,1719349847836,-500.0,0.00016438,2]
[330404776,1719349847845,-791.38,0.00016438,2]
[330404777,1719349847855,-551.0,0.00016438,2]
[330404778,1719349847864,-500.0,0.00016438,2]
[330404779,1719349847873,-500.0,0.00016438,2]
[330404780,1719349847882,-500.0,0.00016438,2]
[330404781,1719349847891,-250.0,0.00016438,2]
[330404782,1719349847901,-500.0,0.00016438,2]
[330404783,1719349847910,-10410.81,0.00016438,2]
[330404784,1719349847920,-376.56,0.00016438,2]
[330404785,1719349847929,-500.0,0.00016438,2]
[330404786,1719349847939,-500.0,0.00016438,2]
[330404787,1719349847948,-1559.56,0.00016438,2]
[330404788,1719349847957,-500.0,0.00016438,2]
[330404789,1719349847966,-500.0,0.00016438,2]
[330404790,1719349847975,-500.0,0.00016438,2]
[330404791,1719349847985,-500.0,0.00016438,2]
[330404792,1719349847994,-2514.33,0.00016438,2]
[330404793,1719349848004,-1150.77,0.00016438,2]
[330404794,1719349848013,-507.1,0.00016438,2]
[330404795,1719349848024,-500.0,0.00016438,2]
[330404796,1719349848034,-500.0,0.00016438,2]
[330404797,1719349848044,-181.04395172,0.00016438,2]
[330404798,1719349848054,-500.0,0.00016438,2]
[330404799,1719349848064,-500.0,0.00016438,2]
[330404800,1719349848074,-444.59224402,0.00016438,2]
[330404801,1719349848084,-504.8,0.00016438,2]
[330404802,1719349848098,-500.0,0.00016438,2]
[330404803,1719349848107,-500.0,0.00016438,2]
[330404804,1719349848116,-500.0,0.00016438,2]
[330404805,1719349848126,-500.0,0.00016438,2]
[330404806,1719349848142,-513.73021439,0.00016438,2]
[330404807,1719349848157,-549.42,0.00016438,2]
[330404808,1719349848168,-645.09,0.00016438,2]
[330404809,1719349848179,-500.0,0.00016438,2]
[330404810,1719349848190,-500.0,0.00016438,2]
[330404811,1719349848201,-500.0,0.00016438,2]
[330404812,1719349848211,-299.01076206,0.00016438,2]
[330404813,1719349848221,-500.0,0.00016438,2]
[330404814,1719349848232,-546.97351837,0.00016438,2]
[330404815,1719349848242,-500.0,0.00016438,2]
[330404816,1719349848252,-919.54,0.00016438,2]
[330404817,1719349848262,-528.73676303,0.00016438,2]
[330404818,1719349848272,-500.0,0.00016438,2]
[330404819,1719349848282,-667.73,0.00016438,2]
[330404820,1719349848293,-765.59,0.00016438,2]
[330404821,1719349848302,-500.0,0.00016438,2]
[330404822,1719349848312,-500.0,0.00016438,2]
[330404823,1719349848322,-19249.75,0.00016438,2]
[330404824,1719349848331,-500.0,0.00016438,2]
[330404825,1719349848341,-506.83470859,0.00016438,2]